lending/lending_fUSD_20260411
["ID","MTS","AMOUNT","RATE_DAILY","PERIOD"]
[420265327,1775880380566,673.72,6.589e-05,2]
[420265328,1775880380776,673.72,6.853e-05,2]
[420265329,1775880380981,673.72,7.116e-05,2]
[420265330,1775880381511,673.72,7.38e-05,2]
[420265331,1775880381648,673.72,7.643e-05,2]
[420265332,1775880381804,673.72,7.907e-05,2]
[420265333,1775880382015,673.72,8.17e-05,2]
[420265334,1775880382235,52.17694847,8.434e-05,2]
[420265335,1775880382317,621.54305153,8.434e-05,2]
[420265336,1775880382765,673.72,8.698e-05,2]
[420265337,1775880384024,673.72,8.961e-05,2]
[420265338,1775880384166,673.72,9.225e-05,2]
[420265339,1775880384701,673.72,9.488e-05,2]
[420265340,1775880384763,673.72,9.752e-05,2]
[420265341,1775880384838,673.72,0.00010015,2]
[420265343,1775880418961,-157.0,0.00010599,2]
[420265344,1775880418993,-1580.0,0.00010599,2]
[420265345,1775880419014,-300.0,0.00010772,2]
[420265346,1775880419041,-7963.0,0.00010773,2]
[420265347,1775880430984,260.171079,0.00010545,2]
[420265348,1775880510664,5075.97586947,0.00010545,2]
[420265349,1775880510696,1607.03845353,0.00010545,2]
[420265351,1775880559713,1630.95,9.975e-05,2]
[420265365,1775880631830,-162.0,0.00010599,2]
[420265367,1775880631847,-157.0,0.00010599,2]
[420265368,1775880631862,-1394.55409183,0.0001075,2]
[420265369,1775880631876,-424.84285358,0.0001075,2]
[420265370,1775880631901,-680.60305459,0.0001075,2]
[420265371,1775880631914,-300.0,0.00010772,2]
[420265372,1775880631938,-198.62507775,0.00010772,2]
[420265373,1775880631996,-700.36150344,0.00010772,2]
[420265374,1775880632021,-301.01341881,0.00010772,2]
[420265375,1775880632037,-1388.51333528,0.00010773,2]
[420265376,1775880632051,-151.0,0.00010844,2]
[420265377,1775880632071,-151.0,0.00010844,2]
[420265378,1775880632089,-151.0,0.00010844,2]
[420265379,1775880632114,-151.0,0.00010844,2]
[420265380,1775880632132,-151.0,0.00010844,2]
[420265382,1775880632148,-151.0,0.00010844,2]
[420265384,1775880632172,-244.01244092,0.00010844,2]
[420265386,1775880632182,-15.38143999,0.00010844,2]
[420265389,1775880632203,-184.61856001,0.00010844,2]
[420265391,1775880632221,-65.64212028,0.00010848,30]
[420265394,1775880632236,-150.0,0.00010848,2]
[420265397,1775880632247,-4772.81,0.00010849,2]
[420265399,1775880632264,-233.951,0.00010849,2]
[420265401,1775880632281,-4952.2853749,0.00010849,2]
[420265403,1775880632291,-229.25194078,0.00010849,2]
[420265405,1775880632302,-500.0,0.00010849,2]
[420265407,1775880632331,-290.59382303,0.00010849,2]
[420265409,1775880632345,-500.0,0.00010849,2]
[420265410,1775880632367,-500.0,0.00010849,2]
[420265412,1775880632377,-500.0,0.00010849,2]
[420265414,1775880632391,-500.0,0.00010849,2]
[420265416,1775880632413,-572.45141522,0.00010849,2]
[420265419,1775880632423,-500.0,0.00010849,2]
[420265421,1775880632436,-500.0,0.00010849,2]
[420265422,1775880632453,-289.4857446,0.00010849,2]
[420265424,1775880632462,-500.0,0.00010849,2]
[420265426,1775880632473,-260.30583018,0.00010849,2]
[420265428,1775880632487,-500.0,0.00010849,2]
[420265430,1775880632496,-500.0,0.00010849,2]
[420265432,1775880632506,-500.0,0.00010849,2]
[420265433,1775880632517,-500.0,0.00010849,2]
[420265434,1775880632533,-500.0,0.00010849,2]
[420265436,1775880632543,-500.0,0.00010849,2]
[420265438,1775880632553,-500.0,0.00010849,2]
[420265439,1775880632562,-500.0,0.00010849,2]
[420265440,1775880632578,-500.0,0.00010849,2]
[420265441,1775880632587,-500.0,0.00010849,2]
[420265442,1775880632597,-500.0,0.00010849,2]
[420265443,1775880632606,-500.0,0.00010849,2]
[420265444,1775880632620,-500.0,0.00010849,2]
[420265445,1775880632630,-500.0,0.00010849,2]
[420265446,1775880632639,-500.0,0.00010849,2]
[420265447,1775880632649,-500.0,0.00010849,2]
[420265448,1775880632662,-500.0,0.00010849,2]
[420265449,1775880632671,-500.0,0.00010849,2]
[420265450,1775880632680,-500.0,0.00010849,2]
[420265451,1775880632690,-500.0,0.00010849,2]
[420265452,1775880632703,-500.0,0.00010849,2]
[420265453,1775880632712,-500.0,0.00010849,2]
[420265454,1775880632722,-500.0,0.00010849,2]
[420265455,1775880632732,-500.0,0.00010849,2]
[420265456,1775880632740,-513.74025972,0.00010849,2]
[420265457,1775880632755,-500.0,0.00010849,2]
[420265458,1775880632764,-500.0,0.00010849,2]
[420265459,1775880632773,-500.0,0.00010849,2]
[420265460,1775880632782,-550.0,0.00010849,2]
[420265461,1775880632797,-500.0,0.00010849,2]
[420265462,1775880632806,-500.0,0.00010849,2]
[420265463,1775880632815,-500.0,0.00010849,2]
[420265464,1775880632824,-500.0,0.00010849,2]
[420265465,1775880632841,-500.0,0.00010849,2]
[420265466,1775880632850,-500.0,0.00010849,2]
[420265467,1775880632860,-500.0,0.00010849,2]
[420265468,1775880632870,-500.0,0.00010849,2]
[420265469,1775880632883,-500.0,0.00010849,2]
[420265470,1775880632892,-200.98283606,0.00010849,2]
[420265471,1775880632901,-500.0,0.00010849,2]
[420265472,1775880632914,-500.0,0.00010849,2]
[420265473,1775880632929,-287.86274288,0.00010849,2]
[420265474,1775880632939,-500.0,0.00010849,2]
[420265475,1775880632948,-500.0,0.00010849,2]
[420265476,1775880632961,-500.0,0.00010849,2]
[420265477,1775880632978,-500.0,0.00010849,2]
[420265478,1775880632988,-500.0,0.00010849,2]
[420265479,1775880632997,-500.0,0.00010849,2]
[420265480,1775880633018,-500.0,0.00010849,2]
[420265481,1775880633030,-500.0,0.00010849,2]
[420265482,1775880633039,-500.0,0.00010849,2]
[420265483,1775880633060,-500.0,0.00010849,2]
[420265484,1775880633074,-500.0,0.00010849,2]
[420265485,1775880633086,-500.0,0.00010849,2]
[420265486,1775880633106,-500.0,0.00010849,2]
[420265487,1775880633127,-500.0,0.00010849,2]
[420265488,1775880633147,-500.0,0.00010849,2]
[420265489,1775880633167,-500.0,0.00010849,2]
[420265490,1775880633179,-500.0,0.00010849,2]
[420265491,1775880633191,-500.0,0.00010849,2]
[420265492,1775880633211,-500.0,0.00010849,2]
[420265493,1775880633225,-500.0,0.00010849,2]
[420265494,1775880633235,-500.0,0.00010849,2]
[420265495,1775880633261,-500.0,0.00010849,2]
[420265496,1775880633279,-500.0,0.00010849,2]
[420265497,1775880633303,-500.0,0.00010849,2]
[420265498,1775880633319,-500.0,0.00010849,2]
[420265499,1775880633342,-500.0,0.00010849,2]
[420265500,1775880633361,-500.0,0.00010849,2]
[420265501,1775880633377,-500.0,0.00010849,2]
[420265502,1775880633401,-500.0,0.00010849,2]
[420265503,1775880633418,-475.13493634,0.00010849,2]
[420265504,1775880633431,-500.0,0.00010849,2]
[420265505,1775880633462,-500.0,0.00010849,2]
[420265506,1775880633474,-500.0,0.00010849,2]
[420265507,1775880633509,-500.0,0.00010849,2]
[420265508,1775880633521,-495.94295783,0.00010849,2]
[420265509,1775880633555,-500.0,0.00010849,2]
[420265510,1775880633566,-495.94295783,0.00010849,2]
[420265511,1775880633598,-495.94295783,0.00010849,2]
[420265512,1775880633610,-500.0,0.00010849,2]
[420265513,1775880633626,-500.0,0.00010849,2]
[420265514,1775880633645,-495.94295783,0.00010849,2]
[420265515,1775880633657,-500.0,0.00010849,2]
[420265516,1775880633675,-495.94295783,0.00010849,2]
[420265517,1775880633691,-500.0,0.00010849,2]
[420265518,1775880633708,-500.0,0.00010849,2]
[420265519,1775880633741,-500.0,0.00010849,2]
[420265520,1775880633754,-500.0,0.00010849,2]
[420265521,1775880633791,-500.0,0.00010849,2]
[420265522,1775880633810,-288.64028192,0.00010849,2]
[420265523,1775880633848,-495.94295783,0.00010849,2]
[420265524,1775880633866,-500.0,0.00010849,2]
[420265525,1775880633886,-500.0,0.00010849,2]
[420265526,1775880633899,-500.0,0.00010849,2]
[420265527,1775880633922,-500.0,0.00010849,2]
[420265528,1775880633933,-500.0,0.00010849,2]
[420265529,1775880633945,-491.88591566,0.00010849,2]
[420265530,1775880633975,-500.0,0.00010849,2]
[420265531,1775880633987,-495.94295783,0.00010849,2]
[420265532,1775880634000,-30574.18603603,0.0001085,2]
[420265533,1775880634025,-405.21062676,0.0001085,2]
[420265534,1775880634041,-746.97515186,0.0001085,2]
[420265591,1775880639512,-283.5463771,0.00010772,30]
[420265592,1775880639529,-252.6075429,0.0001085,2]
[420265593,1775880639555,-3292.22419322,0.0001085,2]
[420265594,1775880639598,-438.93734601,0.0001085,2]
[420265596,1775880639631,-600.0,0.0001085,2]
[420265599,1775880640640,-19999.755009,0.0001085,2]
[420265600,1775880640946,-68168.9234315,0.0001085,2]
[420265601,1775880640958,-1800.02694516,0.0001085,2]
[420265614,1775880642421,-8822.00400869,0.0001085,2]
[420265615,1775880642433,-8947.21879473,0.0001085,2]
[420265616,1775880642444,-8943.78386462,0.0001085,2]
[420265617,1775880642456,-9077.54866152,0.0001085,2]
[420265634,1775880643040,-37489.90181928,0.0001085,2]
[420265635,1775880643283,-141210.69514149,0.0001085,2]
[420265636,1775880643337,-900.0,0.0001085,2]
[420265649,1775880645904,-1199.95308628,0.00010849,3]
[420265650,1775880645918,-2424.19029309,0.0001085,2]
[420265651,1775880646066,-501.0,0.0001085,2]
[420265671,1775880679997,6762.02154647,0.00010599,2]
[420265672,1775880680019,3237.97845353,0.00010599,2]
[420265673,1775880693482,6762.03154647,0.00010599,2]
[420265674,1775880693526,3237.96845353,0.00010599,2]
[420265675,1775880702251,6762.04154647,0.00010599,2]
[420265676,1775880702284,3237.95845353,0.00010599,2]
[420265677,1775880710462,6762.05154647,0.00010599,2]
[420265678,1775880710490,3237.94845353,0.00010599,2]
[420265679,1775880722067,6762.06154647,0.00010599,2]
[420265680,1775880722096,3237.93845353,0.00010599,2]
[420265681,1775880730713,6762.07154647,0.00010599,2]
[420265682,1775880730747,3237.92845353,0.00010599,2]
[420265683,1775880730813,2399.18,0.00010599,2]
[420265684,1775880752257,1000.0,0.00010599,2]
[420265685,1775880756651,182.9,9.954e-05,2]
[420265686,1775880756777,182.9,0.00010507,2]
[420265687,1775880836621,213.0,9.989e-05,2]
[420265688,1775880841223,2784.10154647,0.000103,5]
[420265689,1775880841267,2748.89845353,0.000103,5]
[420265690,1775880841818,5533.0,0.000101,3]
[420265691,1775880841887,1718.11154647,0.0001,2]
[420265692,1775880841930,6492.88845353,0.0001,2]
[420265693,1775880914249,3507.12154647,9.905e-05,2]
[420265694,1775880914297,10000.01,9.905e-05,2]
[420265695,1775880914346,10000.01,9.905e-05,2]
[420265696,1775880914404,10000.01,9.905e-05,2]
[420265697,1775880914453,10000.01,9.905e-05,2]
[420265698,1775880914513,10000.01,9.905e-05,2]
[420265699,1775880914558,3184.98845353,9.905e-05,2]
[420265700,1775881027284,6815.02154647,9.841e-05,2]
[420265701,1775881027324,6794.44845353,9.841e-05,2]
[420265702,1775881117544,2220.3,9.818e-05,2]
[420265706,1775881139527,985.26154647,9.813e-05,2]
[420265707,1775881139556,2293.06845353,9.813e-05,2]
[420265708,1775881180666,1154.58975864,0.0001056,4]
[420265709,1775881197975,172.7,7.844e-05,2]
[420265710,1775881229379,500.0,9.795e-05,2]
[420265711,1775881234400,291.64434868,0.00010599,30]
[420265712,1775881336955,200.0,0.00010599,2]
[420265713,1775881346754,941.80701219,0.00010599,2]
[420265714,1775881381478,300.0,0.00010598,2]
[420265715,1775881382496,-157.0,0.00010599,2]
[420265716,1775881382544,-1688.0,0.00010599,2]
[420265717,1775881382592,-1688.0,0.00010599,2]
[420265718,1775881392363,1519.0,0.00010599,2]
[420265719,1775881392430,1415.01,0.00010599,2]
[420265720,1775881392457,103.99,0.00010599,2]
[420265721,1775881399184,162.0,0.00010599,2]
[420265722,1775881420617,250.0,0.00010499,2]
[420265723,1775881448496,1377.0,0.00010599,2]
[420265724,1775881448547,1377.0,0.00010599,2]
[420265725,1775881454411,162.0,0.00010599,2]
[420265726,1775881475703,1000.0,0.00010598,2]
[420265727,1775881490244,1623.83,9.763e-05,2]
[420265728,1775881492701,577.29487932,0.00010532,4]
[420265729,1775881508190,157.0,0.00010599,2]
[420265730,1775881508863,153.0,0.00010599,2]
[420265731,1775881508948,153.0,0.00010599,2]
[420265732,1775881514620,162.0,0.00010599,2]
[420265733,1775881536333,150.0,0.00010596,2]
[420265734,1775881536393,200.0,0.00010599,2]
[420265735,1775881536438,1000.0,0.00010565,2]
[420265736,1775881547564,800.0,0.00010584,2]
[420265737,1775881573102,695.88512068,0.00010599,2]
[420265738,1775881573125,528.11487932,0.00010599,2]
[420265739,1775881573398,1224.0,0.00010599,2]
[420265741,1775881596154,1000.0,0.00010578,2]
[420265742,1775881609168,-291.64434868,0.0001061,30]
[420265743,1775881609204,-60.27557429,0.0001061,30]
[420265744,1775881627139,1101.0,0.00010599,2]
[420265745,1775881627419,1101.0,0.00010599,2]
[420265746,1775881632973,1009.8,9.723e-05,2]
[420265747,1775881656206,150.0,0.00010576,2]
[420265748,1775881689020,991.0,0.00010599,2]
[420265749,1775881689863,991.0,0.00010599,2]
[420265750,1775881724965,1000.0,0.00010575,2]
[420265751,1775881747937,892.0,0.00010599,2]
[420265752,1775881748248,12.09512068,0.00010599,2]
[420265753,1775881748281,879.90487932,0.00010599,2]
[420265754,1775881748322,7007.0,0.00010599,2]
[420265755,1775881805213,288.64743966,0.00010454,4]
[420265756,1775881812500,803.0,0.00010599,2]
[420265757,1775881812542,157.0,0.00010599,2]
[420265758,1775881812728,803.0,0.00010599,2]
[420265771,1775881834913,-1000.0,0.00010603,2]
[420265772,1775881834936,-1000.0,0.00010608,2]
[420265773,1775881834957,-123.08427147,0.0001061,30]
[420265774,1775881834999,-183.35984576,0.00010611,30]
[420265775,1775881835030,-183.35984576,0.00010613,30]
[420265776,1775881835045,-150.0,0.00010616,2]
[420265777,1775881835082,-200.93190772,0.00010616,2]
[420265778,1775881835104,-291.64434868,0.00010616,30]
[420265779,1775881835142,-183.35984576,0.00010616,30]
[420265780,1775881835156,-151.50404909,0.00010622,2]
[420265781,1775881835195,-291.64434868,0.00010631,30]
[420265782,1775881835209,-300.0,0.00010648,2]
[420265783,1775881835271,-300.0,0.00010648,2]
[420265784,1775881835349,-1200.0,0.00010648,2]
[420265785,1775881835398,-300.0,0.00010648,2]
[420265786,1775881835408,-1000.0,0.00010649,2]
[420265787,1775881835429,-1000.0,0.00010649,2]
[420265788,1775881835467,-2500.0,0.00010649,2]
[420265789,1775881835482,-277.18313688,0.0001065,2]
[420265790,1775881835530,-220.89129981,0.0001065,2]
[420265791,1775881835541,-150.0,0.00010665,2]
[420265792,1775881835555,-150.0,0.00010667,2]
[420265793,1775881835568,-252.5665097,0.00010667,4]
[420265794,1775881835577,-180.40464979,0.00010667,4]
[420265795,1775881835590,-1000.0,0.00010674,2]
[420265796,1775881835611,-1000.0,0.00010702,2]
[420265797,1775881835621,-1000.0,0.0001072,2]
[420265798,1775881835631,-971.84,0.00010728,2]
[420265799,1775881835643,-150.99,0.00010728,2]
[420265800,1775881835654,-1000.0,0.0001073,2]
[420265801,1775881835666,-150.99,0.00010733,2]
[420265802,1775881835676,-758.07,0.00010733,2]
[420265803,1775881835701,-656.59,0.00010733,2]
[420265804,1775881835711,-150.0,0.00010734,2]
[420265805,1775881835733,-351.95936504,0.00010734,2]
[420265806,1775881835744,-82825.0807607,0.00010738,2]
[420265807,1775881835754,-1425.34333442,0.0001074,2]
[420265808,1775881835767,-203.60814161,0.00010743,2]
[420265809,1775881835785,-62.19964988,0.00010744,2]
[420265810,1775881835810,-498.89387459,0.00010744,2]
[420265811,1775881835834,-438.90647553,0.00010744,2]
[420265812,1775881835852,-3229.3381865,0.00010747,2]
[420265814,1775881838221,-220.03181491,0.00010603,30]
[420265815,1775881838231,-220.03181491,0.00010608,30]
[420265816,1775881838248,-220.03181491,0.0001061,30]
[420265817,1775881838258,-220.03181491,0.00010611,30]
[420265818,1775881838270,-513.67975255,0.00010747,2]
[420265819,1775881838282,-75.23006095,0.00010747,2]
[420265820,1775881838297,-187.161,0.00010747,2]
[420265821,1775881838315,-197.98799647,0.00010747,4]
[420265822,1775881838343,-307.14502294,0.00010747,4]
[420265823,1775881838361,-360.80929958,0.00010747,4]
[420265824,1775881838371,-500.0,0.00010748,2]
[420265825,1775881838381,-125.40872007,0.00010748,2]
[420265826,1775881838403,-576.81669122,0.00010748,2]
[420265827,1775881838415,-38.90458871,0.00010748,2]
[420265828,1775881838424,-532.21408112,0.00010748,2]
[420265829,1775881838436,-500.0,0.00010748,2]
[420265830,1775881838452,-203.41567612,0.00010748,2]
[420265831,1775881838461,-452.64002122,0.00010748,2]
[420265832,1775881838479,-268.54950891,0.00010748,2]
[420265833,1775881838498,-231.45049109,0.00010748,2]
[420265834,1775881838509,-93.56974891,0.00010748,2]
[420265835,1775881838532,-167.40217096,0.00010748,2]
[420265836,1775881838544,-458.78048904,0.00010748,2]
[420265837,1775881838649,-41.21951096,0.00010748,2]
[420265838,1775881838659,-226.07675728,0.00010748,2]
[420265853,1775881840970,-20.33013348,0.00010739,2]
[420265854,1775881841009,-262.05290181,0.00010739,2]
[420265855,1775881841019,-273.92324272,0.00010748,2]
[420265856,1775881841030,-500.0,0.00010748,2]
[420265857,1775881841049,-306.66465196,0.00010748,2]
[420265858,1775881841073,-193.33534804,0.00010748,2]
[420265859,1775881841083,-500.0,0.00010748,2]
[420265860,1775881841093,-500.0,0.00010748,2]
[420265861,1775881841111,-500.0,0.00010748,2]
[420265862,1775881841128,-500.0,0.00010748,2]
[420265863,1775881841139,-500.0,0.00010748,2]
[420265864,1775881841149,-500.0,0.00010748,2]
[420265865,1775881841164,-500.0,0.00010748,2]
[420265866,1775881841173,-500.0,0.00010748,2]
[420265867,1775881841185,-500.0,0.00010748,2]
[420265868,1775881841194,-500.0,0.00010748,2]
[420265869,1775881841207,-500.0,0.00010748,2]
[420265870,1775881841222,-500.0,0.00010748,2]
[420265871,1775881841234,-500.0,0.00010748,2]
[420265872,1775881841256,-500.0,0.00010748,2]
[420265873,1775881841266,-500.0,0.00010748,2]
[420265874,1775881841275,-500.0,0.00010748,2]
[420265875,1775881841295,-500.0,0.00010748,2]
[420265876,1775881841319,-500.0,0.00010748,2]
[420265877,1775881841328,-500.0,0.00010748,2]
[420265878,1775881841354,-500.0,0.00010748,2]
[420265879,1775881841375,-500.0,0.00010748,2]
[420265880,1775881841393,-500.0,0.00010748,2]
[420265881,1775881841402,-500.0,0.00010748,2]
[420265882,1775881841414,-500.0,0.00010748,2]
[420265883,1775881841428,-500.0,0.00010748,2]
[420265884,1775881841448,-500.0,0.00010748,2]
[420265885,1775881841457,-500.0,0.00010748,2]
[420265886,1775881841467,-500.0,0.00010748,2]
[420265887,1775881841477,-500.0,0.00010748,2]
[420265888,1775881841492,-500.0,0.00010748,2]
[420265889,1775881841501,-500.0,0.00010748,2]
[420265890,1775881841511,-545.02193521,0.00010748,2]
[420265891,1775881841521,-500.0,0.00010748,2]
[420265892,1775881841547,-500.0,0.00010748,2]
[420265893,1775881841557,-500.0,0.00010748,2]
[420265894,1775881841570,-500.0,0.00010748,2]
[420265895,1775881841580,-500.0,0.00010748,2]
[420265896,1775881841589,-500.0,0.00010748,2]
[420265897,1775881841607,-500.0,0.00010748,2]
[420265898,1775881841619,-61.39772575,0.00010748,2]
[420265899,1775881841639,-438.60227425,0.00010748,2]
[420265900,1775881841648,-500.0,0.00010748,2]
[420265901,1775881841657,-500.0,0.00010748,2]
[420265902,1775881841676,-500.0,0.00010748,2]
[420265903,1775881841697,-500.0,0.00010748,2]
[420265904,1775881841706,-500.0,0.00010748,2]
[420265905,1775881841715,-500.0,0.00010748,2]
[420265906,1775881841738,-249.99999999,0.00010748,2]
[420265907,1775881841751,-345.22990447,0.00010748,2]
[420265908,1775881841799,-154.77009553,0.00010748,2]
[420265909,1775881841809,-500.0,0.00010748,2]
[420265910,1775881841833,-72.59990447,0.00010748,2]
[420265922,1775881844646,1000.0,0.00010562,2]
[420265923,1775881844671,-427.40009553,0.00010748,2]
[420265924,1775881844694,-500.0,0.00010748,2]
[420265925,1775881844705,-500.0,0.00010748,2]
[420265926,1775881844714,-500.0,0.00010748,2]
[420265927,1775881844739,-500.0,0.00010748,2]
[420265928,1775881844750,-500.0,0.00010748,2]
[420265929,1775881844759,-500.0,0.00010748,2]
[420265930,1775881844785,-500.0,0.00010748,2]
[420265931,1775881844795,-500.0,0.00010748,2]
[420265932,1775881844804,-350.0,0.00010748,2]
[420265933,1775881844816,-500.0,0.00010748,2]
[420265934,1775881844834,-500.0,0.00010748,2]
[420265935,1775881844843,-500.0,0.00010748,2]
[420265936,1775881844853,-500.0,0.00010748,2]
[420265937,1775881844872,-500.0,0.00010748,2]
[420265938,1775881844881,-500.0,0.00010748,2]
[420265939,1775881844892,-7461.24280468,0.00010749,2]
[420265940,1775881844944,-888.0,0.00010749,2]
[420265941,1775881846195,-15014.23577487,0.00010749,2]
[420265942,1775881846212,-378.28708157,0.00010749,2]
[420265943,1775881846239,-923.0,0.00010749,2]
[420265944,1775881846368,-500.0,0.00010749,2]
[420265975,1775881888102,3054.599,0.00010534,2]
[420265976,1775881888170,187.161,0.00010534,2]
[420265977,1775881896102,150.0,0.0001059,2]
[420265978,1775881896235,1000.0,0.00010558,2]
[420265979,1775881896302,1000.0,0.00010577,2]
[420265980,1775881927339,723.0,0.00010599,2]
[420265981,1775881955823,1000.0,0.0001054,2]
[420265982,1775881986053,686.0,0.00010599,2]
[420265983,1775882015741,1000.0,0.00010567,2]
[420265984,1775882050939,199.25,0.00010599,2]
[420265985,1775882051018,452.75,0.00010599,2]
[420265986,1775882076375,1000.0,0.00010536,2]
[420265987,1775882110925,619.0,0.00010599,2]
[420265988,1775882114161,360.80929958,0.00010528,4]
[420265989,1775882117513,200.0,9.75e-05,2]
[420265990,1775882155728,1500.0,9.746e-05,2]
[420265991,1775882171723,589.0,0.00010599,2]
[420265992,1775882195953,1000.0,0.00010569,2]
[420265993,1775882227859,559.0,0.00010599,2]
[420265995,1775882255953,1000.0,0.0001057,2]
[420265996,1775882260198,1000.31571269,0.00013,60]
[420265997,1775882287335,531.0,0.00010599,2]
[420265998,1775882301001,211.15,9.76e-05,2]
[420265999,1775882314794,1977.30070042,9.76e-05,2]
[420266000,1775882314829,22.69929958,9.76e-05,2]
[420266001,1775882320950,1852.42,9.76e-05,2]
[420266002,1775882323587,588.03868364,0.00010469,2]
[420266003,1775882345707,505.0,0.00010599,2]
[420266004,1775882376008,1000.0,0.00010579,2]
[420266005,1775882406243,479.0,0.00010599,2]
[420266006,1775882413727,158.0,0.00010599,2]
[420266007,1775882429327,180.40464979,0.00010461,4]
[420266008,1775882472448,455.0,0.00010599,2]
[420266009,1775882541998,-300.0,0.00010602,2]
[420266010,1775882542039,-199.0,0.00010603,2]
[420266011,1775882542079,-1200.0,0.00010603,2]
[420266012,1775882542117,-425.04856125,0.00010603,30]
[420266013,1775882542147,-150.0,0.00010603,2]
[420266014,1775882542179,-400.0,0.00010604,2]
[420266015,1775882542211,-425.04856125,0.00010604,30]
[420266016,1775882542244,-174.61919142,0.00010604,2]
[420266017,1775882542274,-500.0,0.00010604,2]
[420266018,1775882546619,-6698.64744245,0.00010604,2]
[420266019,1775882546653,-4676.32468412,0.00010604,2]
[420266020,1775882546664,-578.20924308,0.00010604,2]
[420266021,1775882546684,-1000.0,0.00010611,2]
[420266022,1775882546706,-425.04856125,0.00010611,30]
[420266023,1775882546719,-193.0,0.00010612,2]
[420266024,1775882546754,-250.0,0.00010612,2]
[420266025,1775882546763,-425.04856125,0.00010612,30]
[420266026,1775882546783,-1000.0,0.00010621,2]
[420266027,1775882546798,-220.0318149,0.00010621,30]
[420266028,1775882546809,-275.93846156,0.00010622,2]
[420266029,1775882546830,-279.6680983,0.00010622,2]
[420266030,1775882546844,-676.74057554,0.00010624,2]
[420266031,1775882546895,-323.25942446,0.00010624,2]
[420266032,1775882546912,-1000.0,0.00010629,2]
[420266033,1775882546922,-2443.679,0.00010632,2]
[420266034,1775882546934,-187.161,0.00010632,2]
[420266035,1775882547293,-287.66099688,0.00010632,2]
[420266036,1775882547323,-500.0,0.00010641,2]
[420266037,1775882547337,-282.68034391,0.00010641,2]
[420266038,1775882547352,-500.0,0.00010641,2]
[420266039,1775882547375,-500.0,0.00010641,2]
[420266040,1775882547384,-500.0,0.00010641,2]
[420266041,1775882547403,-500.0,0.00010641,2]
[420266042,1775882547442,-500.0,0.00010641,2]
[420266043,1775882547462,-500.0,0.00010641,2]
[420266044,1775882547475,-500.0,0.00010641,2]
[420266045,1775882547487,-500.0,0.00010641,2]
[420266046,1775882547529,-500.0,0.00010641,2]
[420266047,1775882547540,-475.56923475,0.00010641,2]
[420266048,1775882547619,-24.43076525,0.00010641,2]
[420266049,1775882547654,-500.0,0.00010641,2]
[420266050,1775882547664,-9475.57923475,0.00010642,2]
[420266051,1775882547752,-10000.01,0.00010642,2]
[420266052,1775882547826,-10000.01,0.00010642,2]
[420266053,1775882549070,-10000.01,0.00010642,2]
[420266054,1775882550774,-10000.01,0.00010642,2]
[420266055,1775882550924,-10000.01,0.00010642,2]
[420266056,1775882551073,-10000.01,0.00010642,2]
[420266057,1775882551258,-10000.01,0.00010642,2]
[420266058,1775882551275,-10000.01,0.00010642,2]
[420266059,1775882552744,-10000.01,0.00010642,2]
[420266060,1775882552767,-10000.01,0.00010642,2]
[420266061,1775882552799,-10000.01,0.00010642,2]
[420266062,1775882565155,1045.0,0.000103,5]